[Event "*** Titled Tuesday Blitz"]
[Site "Chess.com"]
[Date "2020.10.27"]
[Round "3"]
[White "Ranindu2003"]
[Black "tylityli"]
[Result "1-0"]
[WhiteElo "2556"]
[BlackElo "2241"]
[TimeControl "180+1"]
[EndTime "10:27:58 PDT"]
[Termination "Ranindu2003 won on time"]

1. e4 {[%clk 0:02:57.7]} 1... e5 {[%clk 0:02:58.5]} 2. Nf3 {[%clk 0:02:57.7]}
2... Nc6 {[%clk 0:02:57.9]} 3. Bc4 {[%clk 0:02:58.4]} 3... Nf6 {[%clk
0:02:56.2]} 4. d3 {[%clk 0:02:58.2]} 4... Be7 {[%clk 0:02:55.8]} 5. O-O {[%clk
0:02:57.3]} 5... O-O {[%clk 0:02:54.1]} 6. Re1 {[%clk 0:02:57.9]} 6... d6 {[%clk
0:02:53.5]} 7. a4 {[%clk 0:02:58.4]} 7... Be6 {[%clk 0:02:51.1]} 8. Na3 {[%clk
0:02:54.6]} 8... Bxc4 {[%clk 0:02:46.6]} 9. Nxc4 {[%clk 0:02:55.5]} 9... h6
{[%clk 0:02:46.7]} 10. c3 {[%clk 0:02:54.5]} 10... Re8 {[%clk 0:02:44.4]} 11. a5
{[%clk 0:02:54.5]} 11... a6 {[%clk 0:02:43.8]} 12. b4 {[%clk 0:02:52.6]} 12...
Bf8 {[%clk 0:02:42.1]} 13. Ne3 {[%clk 0:02:41.3]} 13... d5 {[%clk 0:02:40.9]}
14. Qc2 {[%clk 0:02:35.9]} 14... Qd7 {[%clk 0:02:35]} 15. exd5 {[%clk
0:02:31.7]} 15... Nxd5 {[%clk 0:02:34.4]} 16. Nc4 {[%clk 0:02:32]} 16... Qf5
{[%clk 0:02:28.9]} 17. Rb1 {[%clk 0:02:26.5]} 17... b5 {[%clk 0:01:47.4]} 18.
axb6 {[%clk 0:02:24.6]} 18... Nxb6 {[%clk 0:01:46.3]} 19. Ne3 {[%clk 0:02:19.7]}
19... Qg6 {[%clk 0:01:38]} 20. Nh4 {[%clk 0:02:14.3]} 20... Qh5 {[%clk
0:01:33.7]} 21. Nhf5 {[%clk 0:02:13.1]} 21... g6 {[%clk 0:01:30.1]} 22. Ng3
{[%clk 0:02:09.2]} 22... Qh4 {[%clk 0:01:29.1]} 23. b5 {[%clk 0:01:47.4]} 23...
axb5 {[%clk 0:01:26.7]} 24. Rxb5 {[%clk 0:01:48.3]} 24... Qa4 {[%clk 0:00:56.5]}
25. Qb1 {[%clk 0:01:35.2]} 25... Qa2 {[%clk 0:00:47.1]} 26. Ng4 {[%clk
0:01:29.2]} 26... Bg7 {[%clk 0:00:43.6]} 27. Bxh6 {[%clk 0:01:26]} 27... Qxb1
{[%clk 0:00:37.6]} 28. Rbxb1 {[%clk 0:01:25]} 28... f5 {[%clk 0:00:34.3]} 29.
Bxg7 {[%clk 0:01:24.9]} 29... Kxg7 {[%clk 0:00:34.1]} 30. Ne3 {[%clk 0:01:10.7]}
30... f4 {[%clk 0:00:33.2]} 31. Rb5 {[%clk 0:01:10.6]} 31... fxe3 {[%clk
0:00:28.8]} 32. fxe3 {[%clk 0:01:11.5]} 32... Ra2 {[%clk 0:00:19.9]} 33. Ne4
{[%clk 0:01:09.6]} 33... Rea8 {[%clk 0:00:18.3]} 34. Rc5 {[%clk 0:01:09.1]}
34... Ra1 {[%clk 0:00:15.8]} 35. Rxa1 {[%clk 0:01:06.6]} 35... Rxa1+ {[%clk
0:00:14.9]} 36. Kf2 {[%clk 0:01:07.5]} 36... Ne7 {[%clk 0:00:12.9]} 37. Rxc7
{[%clk 0:01:07.6]} 37... Kf8 {[%clk 0:00:12.2]} 38. Nc5 {[%clk 0:01:07.5]} 38...
Nbd5 {[%clk 0:00:11.7]} 39. Rb7 {[%clk 0:00:54.2]} 39... Nxc3 {[%clk 0:00:09.4]}
40. Nd7+ {[%clk 0:00:54.5]} 40... Ke8 {[%clk 0:00:06.7]} 41. Nxe5 {[%clk
0:00:54.3]} 41... Ra2+ {[%clk 0:00:06.4]} 42. Kf3 {[%clk 0:00:52.7]} 42... Ncd5
{[%clk 0:00:04.9]} 43. Rb8+ {[%clk 0:00:52.8]} 1-0

[Event "*** Titled Tuesday Blitz"]
[Site "Chess.com"]
[Date "2020.10.27"]
[Round "3"]
[White "Chessmatus"]
[Black "PaulfromSPb"]
[Result "0-1"]
[WhiteElo "2420"]
[BlackElo "2666"]
[TimeControl "180+1"]
[EndTime "10:27:59 PDT"]
[Termination "PaulfromSPb won by resignation"]

1. e4 {[%clk 0:03:00.9]} 1... c5 {[%clk 0:02:59.4]} 2. Nf3 {[%clk 0:03:00.7]}
2... d6 {[%clk 0:02:59.2]} 3. d4 {[%clk 0:03:01.1]} 3... cxd4 {[%clk 0:02:59.4]}
4. Nxd4 {[%clk 0:03:02]} 4... Nf6 {[%clk 0:02:58.9]} 5. Nc3 {[%clk 0:03:02]}
5... a6 {[%clk 0:02:58.9]} 6. Be3 {[%clk 0:03:02.5]} 6... e5 {[%clk 0:02:58.5]}
7. Nb3 {[%clk 0:03:02.8]} 7... Be6 {[%clk 0:02:58]} 8. f3 {[%clk 0:03:03.2]}
8... Be7 {[%clk 0:02:49.6]} 9. Qd2 {[%clk 0:03:02.9]} 9... O-O {[%clk
0:02:49.3]} 10. O-O-O {[%clk 0:03:03.5]} 10... a5 {[%clk 0:02:49.6]} 11. Bb5
{[%clk 0:02:53.9]} 11... Na6 {[%clk 0:02:44.8]} 12. a4 {[%clk 0:02:47.3]} 12...
Nb4 {[%clk 0:02:43.3]} 13. Qf2 {[%clk 0:02:31.2]} 13... Nd7 {[%clk 0:02:27]} 14.
Nd5 {[%clk 0:02:23.3]} 14... Nxd5 {[%clk 0:02:23.1]} 15. exd5 {[%clk 0:02:22.3]}
15... Bf5 {[%clk 0:02:23.5]} 16. g4 {[%clk 0:02:22.1]} 16... Bg6 {[%clk
0:02:22.7]} 17. h4 {[%clk 0:02:19.8]} 17... Rc8 {[%clk 0:02:22.1]} 18. Bd3
{[%clk 0:02:19.7]} 18... Bxd3 {[%clk 0:02:16.5]} 19. Rxd3 {[%clk 0:02:20.6]}
19... Rc4 {[%clk 0:02:16.7]} 20. Kb1 {[%clk 0:01:27.4]} 20... Rxa4 {[%clk
0:01:55.1]} 21. g5 {[%clk 0:01:20.6]} 21... Rb4 {[%clk 0:01:52.9]} 22. Bd2
{[%clk 0:01:19.5]} 22... Rc4 {[%clk 0:01:44.6]} 23. Bxa5 {[%clk 0:01:17.1]}
23... Qa8 {[%clk 0:01:41.1]} 24. Bc3 {[%clk 0:01:15.5]} 24... Ra4 {[%clk
0:01:39]} 25. f4 {[%clk 0:01:05.4]} 25... Nc5 {[%clk 0:01:38.5]} 26. Rdh3 {[%clk
0:01:00.3]} 26... Rxf4 {[%clk 0:01:34.5]} 27. Qe3 {[%clk 0:00:55.6]} 27... Nxb3
{[%clk 0:01:32]} 28. cxb3 {[%clk 0:00:56.5]} 28... b5 {[%clk 0:01:29.8]} 29. b4
{[%clk 0:00:54.1]} 29... Qxd5 {[%clk 0:01:29.1]} 30. Rg1 {[%clk 0:00:48]} 30...
Ra8 {[%clk 0:01:22.3]} 31. h5 {[%clk 0:00:44.6]} 31... g6 {[%clk 0:01:11.9]} 32.
hxg6 {[%clk 0:00:43.7]} 32... fxg6 {[%clk 0:01:08.6]} 33. Rgh1 {[%clk
0:00:43.3]} 33... Rf7 {[%clk 0:01:02.5]} 34. Qe2 {[%clk 0:00:30.2]} 34... Qa2+
{[%clk 0:00:58.4]} 35. Kc2 {[%clk 0:00:29.8]} 35... Qc4 {[%clk 0:00:58.1]} 36.
Qg2 {[%clk 0:00:26.7]} 36... Raf8 {[%clk 0:00:56.5]} 37. Kb1 {[%clk 0:00:20.6]}
37... Rf1+ {[%clk 0:00:54.9]} 38. Rxf1 {[%clk 0:00:18.9]} 38... Qxf1+ {[%clk
0:00:54.4]} 39. Qxf1 {[%clk 0:00:19.2]} 39... Rxf1+ {[%clk 0:00:55.3]} 40. Ka2
{[%clk 0:00:20.1]} 40... Rd1 {[%clk 0:00:48]} 41. Rg3 {[%clk 0:00:19.3]} 41...
Kf7 {[%clk 0:00:47.2]} 42. Kb3 {[%clk 0:00:18]} 42... Ke6 {[%clk 0:00:47.3]} 43.
Kc2 {[%clk 0:00:18.5]} 43... Rf1 {[%clk 0:00:47]} 44. Rh3 {[%clk 0:00:13.4]}
44... Rf7 {[%clk 0:00:45.6]} 45. Rg3 {[%clk 0:00:12]} 45... d5 {[%clk
0:00:45.5]} 46. Kd3 {[%clk 0:00:12.1]} 46... d4 {[%clk 0:00:45.4]} 47. Bd2
{[%clk 0:00:11.9]} 47... Kd5 {[%clk 0:00:46.3]} 0-1

[Event "*** Titled Tuesday Blitz"]
[Site "Chess.com"]
[Date "2020.10.27"]
[Round "3"]
[White "Blitzstream"]
[Black "Casper_Schoppen"]
[Result "0-1"]
[WhiteElo "2722"]
[BlackElo "2965"]
[TimeControl "180+1"]
[EndTime "10:28:00 PDT"]
[Termination "Casper_Schoppen won by resignation"]

1. d4 {[%clk 0:02:52.9]} 1... Nf6 {[%clk 0:02:59]} 2. Bg5 {[%clk 0:02:49.3]}
2... Ne4 {[%clk 0:02:56]} 3. Bh4 {[%clk 0:02:48.9]} 3... c5 {[%clk 0:02:53.9]}
4. f3 {[%clk 0:02:48.6]} 4... Nf6 {[%clk 0:02:48.9]} 5. d5 {[%clk 0:02:35.7]}
5... d6 {[%clk 0:02:45.3]} 6. e4 {[%clk 0:02:34.9]} 6... g6 {[%clk 0:02:43.3]}
7. c3 {[%clk 0:02:28.4]} 7... Bg7 {[%clk 0:02:41.4]} 8. Nd2 {[%clk 0:02:27.9]}
8... O-O {[%clk 0:02:25.3]} 9. Bc4 {[%clk 0:02:18.1]} 9... Na6 {[%clk
0:02:17.9]} 10. Ne2 {[%clk 0:02:00.5]} 10... Nc7 {[%clk 0:02:17]} 11. a4 {[%clk
0:01:59.2]} 11... e6 {[%clk 0:02:12.5]} 12. dxe6 {[%clk 0:01:55.4]} 12... Bxe6
{[%clk 0:02:10.4]} 13. Bxe6 {[%clk 0:01:53.1]} 13... Nxe6 {[%clk 0:02:10.3]} 14.
O-O {[%clk 0:01:52.6]} 14... g5 {[%clk 0:01:46.8]} 15. Bf2 {[%clk 0:01:47.8]}
15... d5 {[%clk 0:01:45.7]} 16. exd5 {[%clk 0:01:48.1]} 16... Qxd5 {[%clk
0:01:45.2]} 17. Ne4 {[%clk 0:01:42.5]} 17... Qc6 {[%clk 0:01:44.1]} 18. Nxf6+
{[%clk 0:01:29.6]} 18... Bxf6 {[%clk 0:01:44.1]} 19. Qb3 {[%clk 0:01:29.9]}
19... Rad8 {[%clk 0:01:22.8]} 20. Rad1 {[%clk 0:01:27.2]} 20... c4 {[%clk
0:01:15.4]} 21. Qb5 {[%clk 0:01:25.1]} 21... Qxb5 {[%clk 0:01:10.2]} 22. axb5
{[%clk 0:01:26]} 22... b6 {[%clk 0:01:10.5]} 23. Be3 {[%clk 0:01:14.3]} 23...
Kg7 {[%clk 0:01:10]} 24. Ng3 {[%clk 0:01:13.4]} 24... Kg6 {[%clk 0:01:09.3]} 25.
Ne4 {[%clk 0:01:11]} 25... Be7 {[%clk 0:01:09.1]} 26. g3 {[%clk 0:00:52.8]}
26... f5 {[%clk 0:01:04.2]} 27. Nd2 {[%clk 0:00:52.5]} 27... Rc8 {[%clk
0:00:59.1]} 28. Ra1 {[%clk 0:00:50.5]} 28... Rc7 {[%clk 0:00:59]} 29. Ra4 {[%clk
0:00:50.4]} 29... Bc5 {[%clk 0:00:27.3]} 30. Nxc4 {[%clk 0:00:43.3]} 30... Rd8
{[%clk 0:00:23.5]} 31. Re1 {[%clk 0:00:32.4]} 31... Kf6 {[%clk 0:00:22.1]} 32.
Kf2 {[%clk 0:00:24.1]} 32... f4 {[%clk 0:00:20.2]} 33. gxf4 {[%clk 0:00:19.9]}
33... gxf4 {[%clk 0:00:21.1]} 34. Bd4+ {[%clk 0:00:14.4]} 34... Bxd4+ {[%clk
0:00:21.2]} 35. cxd4 {[%clk 0:00:14.8]} 35... Rxd4 {[%clk 0:00:21.5]} 36. b3
{[%clk 0:00:14.3]} 36... Nc5 {[%clk 0:00:21.6]} 37. Rb4 {[%clk 0:00:09.1]} 37...
Nd3+ {[%clk 0:00:21.6]} 0-1

[Event "*** Titled Tuesday Blitz"]
[Site "Chess.com"]
[Date "2020.10.27"]
[Round "3"]
[White "kinga2008"]
[Black "bazar-wokzal"]
[Result "0-1"]
[WhiteElo "2123"]
[BlackElo "2493"]
[TimeControl "180+1"]
[EndTime "10:28:02 PDT"]
[Termination "bazar-wokzal won by resignation"]

1. e4 {[%clk 0:03:00.9]} 1... Nc6 {[%clk 0:02:59.4]} 2. d4 {[%clk 0:03:00.4]}
2... d5 {[%clk 0:02:59.3]} 3. exd5 {[%clk 0:02:59.5]} 3... Qxd5 {[%clk 0:02:59]}
4. Nf3 {[%clk 0:02:59.9]} 4... Bg4 {[%clk 0:02:58.8]} 5. Be2 {[%clk 0:02:59.3]}
5... O-O-O {[%clk 0:02:58.3]} 6. Be3 {[%clk 0:02:56.6]} 6... Nh6 {[%clk
0:02:57.1]} 7. O-O {[%clk 0:02:55.1]} 7... Nf5 {[%clk 0:02:56.9]} 8. Nc3 {[%clk
0:02:52.8]} 8... Nxe3 {[%clk 0:02:50.8]} 9. fxe3 {[%clk 0:02:53.7]} 9... Qh5
{[%clk 0:02:43]} 10. h3 {[%clk 0:02:52]} 10... Bxf3 {[%clk 0:02:41.8]} 11. Bxf3
{[%clk 0:02:52.9]} 11... Qh6 {[%clk 0:02:42.1]} 12. Qd3 {[%clk 0:02:40.2]} 12...
e5 {[%clk 0:02:03.3]} 13. Qf5+ {[%clk 0:02:30.6]} 13... Qe6 {[%clk 0:01:44.2]}
14. Qd3 {[%clk 0:01:55.6]} 14... Nb4 {[%clk 0:01:29.1]} 15. Qb5 {[%clk
0:01:47.6]} 15... Qa6 {[%clk 0:01:16.8]} 16. Qxe5 {[%clk 0:01:38.7]} 16... Bd6
{[%clk 0:01:11.2]} 17. Qf5+ {[%clk 0:01:32.9]} 17... Kb8 {[%clk 0:01:11.7]} 18.
a3 {[%clk 0:01:32.8]} 18... g6 {[%clk 0:01:09.8]} 19. Qe4 {[%clk 0:01:26.7]}
19... f5 {[%clk 0:01:05.7]} 20. Qxb7+ {[%clk 0:01:24]} 20... Qxb7 {[%clk
0:01:05.7]} 21. Bxb7 {[%clk 0:01:24.9]} 21... Nxc2 {[%clk 0:01:04.5]} 22. Rac1
{[%clk 0:01:20.5]} 22... Nxe3 {[%clk 0:01:03.6]} 23. Rfe1 {[%clk 0:01:14.3]}
23... Kxb7 {[%clk 0:01:03.5]} 24. Rxe3 {[%clk 0:01:13.3]} 24... Bf4 {[%clk
0:01:03.5]} 25. Kf2 {[%clk 0:01:11.8]} 25... Rxd4 {[%clk 0:00:57.5]} 26. Ne2
{[%clk 0:01:09.8]} 26... Bxe3+ {[%clk 0:00:56.6]} 27. Kxe3 {[%clk 0:01:10.7]}
27... Re4+ {[%clk 0:00:57.2]} 28. Kf3 {[%clk 0:01:10.9]} 28... Rd8 {[%clk
0:00:56.3]} 29. Nc3 {[%clk 0:01:08.9]} 29... Rd3+ {[%clk 0:00:54.8]} 30. Kf2
{[%clk 0:01:07.1]} 30... Rd2+ {[%clk 0:00:55.3]} 31. Kf3 {[%clk 0:01:05.5]}
31... Re5 {[%clk 0:00:52]} 32. Na4 {[%clk 0:01:03.8]} 32... Rd3+ {[%clk
0:00:48.9]} 33. Kf2 {[%clk 0:01:00.5]} 33... Rd2+ {[%clk 0:00:44.7]} 34. Kf3
{[%clk 0:00:56.9]} 34... Ree2 {[%clk 0:00:41.3]} 35. Nc5+ {[%clk 0:00:55.7]}
35... Kc8 {[%clk 0:00:38.7]} 36. Na6 {[%clk 0:00:52]} 36... Rf2+ {[%clk
0:00:37.7]} 37. Ke3 {[%clk 0:00:51.6]} 37... Rc2 {[%clk 0:00:34.8]} 38. Rd1
{[%clk 0:00:47.1]} 38... Rce2+ {[%clk 0:00:34.5]} 39. Kd3 {[%clk 0:00:46.3]}
39... Rxb2 {[%clk 0:00:34]} 40. Nc5 {[%clk 0:00:42.1]} 40... Rxg2 {[%clk
0:00:32.6]} 41. Re1 {[%clk 0:00:39.6]} 41... Rbd2+ {[%clk 0:00:31.3]} 42. Kc4
{[%clk 0:00:30.5]} 42... Kd8 {[%clk 0:00:28.9]} 43. Ne6+ {[%clk 0:00:22]} 43...
Kd7 {[%clk 0:00:27.8]} 44. Nf8+ {[%clk 0:00:22.5]} 44... Kc6 {[%clk 0:00:27.6]}
45. Re6+ {[%clk 0:00:22.9]} 45... Rd6 {[%clk 0:00:27.1]} 46. Nxh7 {[%clk
0:00:23.8]} 46... Rxe6 {[%clk 0:00:27.1]} 47. Nf8 {[%clk 0:00:24.4]} 47... Re4+
{[%clk 0:00:27.1]} 0-1

[Event "*** Titled Tuesday Blitz"]
[Site "Chess.com"]
[Date "2020.10.27"]
[Round "3"]
[White "maciek_92"]
[Black "PSvidler"]
[Result "0-1"]
[WhiteElo "2695"]
[BlackElo "2921"]
[TimeControl "180+1"]
[EndTime "10:28:05 PDT"]
[Termination "PSvidler won by resignation"]

1. e4 {[%clk 0:03:00.9]} 1... c5 {[%clk 0:02:58.8]} 2. Nf3 {[%clk 0:03:01.1]}
2... d6 {[%clk 0:02:58.6]} 3. d4 {[%clk 0:03:01.6]} 3... cxd4 {[%clk 0:02:59.1]}
4. Nxd4 {[%clk 0:03:02.5]} 4... Nf6 {[%clk 0:02:59.8]} 5. Nc3 {[%clk 0:03:03.2]}
5... a6 {[%clk 0:03:00.4]} 6. Bg5 {[%clk 0:02:57.7]} 6... Nbd7 {[%clk
0:02:59.2]} 7. Qe2 {[%clk 0:02:57.6]} 7... h6 {[%clk 0:02:58.6]} 8. Bh4 {[%clk
0:02:54.6]} 8... g6 {[%clk 0:02:58.3]} 9. O-O-O {[%clk 0:02:53.3]} 9... Bg7
{[%clk 0:02:58.1]} 10. Kb1 {[%clk 0:02:46.2]} 10... Qc7 {[%clk 0:02:55.5]} 11.
f4 {[%clk 0:02:43]} 11... b5 {[%clk 0:02:53]} 12. a3 {[%clk 0:02:43.1]} 12...
Bb7 {[%clk 0:02:52.6]} 13. Nb3 {[%clk 0:02:01.3]} 13... O-O {[%clk 0:02:43.9]}
14. g4 {[%clk 0:01:59]} 14... Rac8 {[%clk 0:02:14.6]} 15. Bg2 {[%clk 0:01:46.7]}
15... Qb6 {[%clk 0:02:11.9]} 16. Nd5 {[%clk 0:01:39]} 16... Bxd5 {[%clk
0:02:06.8]} 17. exd5 {[%clk 0:01:39.9]} 17... Rc4 {[%clk 0:02:07.4]} 18. Bf2
{[%clk 0:01:28.4]} 18... Qc7 {[%clk 0:01:50]} 19. Bd4 {[%clk 0:01:27.5]} 19...
a5 {[%clk 0:01:36.7]} 20. g5 {[%clk 0:01:23.9]} 20... hxg5 {[%clk 0:01:24.6]}
21. fxg5 {[%clk 0:01:24.8]} 21... Nh5 {[%clk 0:01:24.5]} 22. Bxg7 {[%clk
0:01:25]} 22... Nxg7 {[%clk 0:01:23.2]} 23. Nd4 {[%clk 0:01:25.7]} 23... Ne5
{[%clk 0:01:22]} 24. h4 {[%clk 0:01:14.2]} 24... Rc8 {[%clk 0:01:17.2]} 25. Be4
{[%clk 0:01:02]} 25... Qb6 {[%clk 0:01:14.4]} 26. c3 {[%clk 0:00:37.7]} 26... b4
{[%clk 0:01:13.5]} 27. h5 {[%clk 0:00:27.8]} 27... bxc3 {[%clk 0:01:08.2]} 28.
hxg6 {[%clk 0:00:28.2]} 28... fxg6 {[%clk 0:01:02.8]} 29. Qh2 {[%clk 0:00:09.4]}
29... Qxb2+ {[%clk 0:00:59.5]} 30. Qxb2 {[%clk 0:00:08.8]} 30... cxb2 {[%clk
0:01:00.4]} 31. Bc2 {[%clk 0:00:06.3]} 31... Rb8 {[%clk 0:00:57]} 32. Rh6 {[%clk
0:00:05.4]} 32... Rc3 {[%clk 0:00:54.6]} 33. Bxg6 {[%clk 0:00:04.5]} 33... Nxg6
{[%clk 0:00:52.9]} 34. Rxg6 {[%clk 0:00:04.7]} 34... Rxa3 {[%clk 0:00:53.3]} 35.
Kc2 {[%clk 0:00:05.1]} 35... Ra1 {[%clk 0:00:49.2]} 36. Rb1 {[%clk 0:00:04.5]}
36... Kf7 {[%clk 0:00:49.1]} 37. Rh6 {[%clk 0:00:04.2]} 37... Ra4 {[%clk
0:00:49]} 38. Nc6 {[%clk 0:00:03.8]} 38... Rc4+ {[%clk 0:00:48.2]} 39. Kd2
{[%clk 0:00:03.3]} 39... Rb5 {[%clk 0:00:48]} 40. Nd8+ {[%clk 0:00:02.2]} 40...
Ke8 {[%clk 0:00:47.6]} 41. Ne6 {[%clk 0:00:02.8]} 41... Rxd5+ {[%clk 0:00:46.9]}
42. Ke3 {[%clk 0:00:03.5]} 42... Nxe6 {[%clk 0:00:46.5]} 43. Rxe6 {[%clk
0:00:03.4]} 43... Rb4 {[%clk 0:00:46.7]} 44. g6 {[%clk 0:00:02.8]} 44... Rg5
{[%clk 0:00:46.1]} 45. Kf3 {[%clk 0:00:02.5]} 45... Kd7 {[%clk 0:00:46.1]} 46.
Rbe1 {[%clk 0:00:02.7]} 46... b1=Q {[%clk 0:00:45.3]} 47. Rxe7+ {[%clk
0:00:03.3]} 47... Kc6 {[%clk 0:00:45.6]} 48. Rxb1 {[%clk 0:00:03.1]} 48... Rxb1
{[%clk 0:00:45.8]} 49. g7 {[%clk 0:00:04]} 0-1

[Event "*** Titled Tuesday Blitz"]
[Site "Chess.com"]
[Date "2020.10.27"]
[Round "3"]
[White "vanyakuba"]
[Black "politeplayer"]
[Result "1/2-1/2"]
[WhiteElo "2495"]
[BlackElo "2206"]
[TimeControl "180+1"]
[EndTime "10:28:07 PDT"]
[Termination "Game drawn by repetition"]

1. e4 {[%clk 0:03:00.6]} 1... e5 {[%clk 0:02:51.1]} 2. Nf3 {[%clk 0:02:56.7]}
2... Nf6 {[%clk 0:02:51.5]} 3. Nc3 {[%clk 0:02:54.4]} 3... Bb4 {[%clk
0:02:50.9]} 4. d3 {[%clk 0:02:53.7]} 4... Nc6 {[%clk 0:02:48.5]} 5. g3 {[%clk
0:02:53.4]} 5... d5 {[%clk 0:02:47.7]} 6. exd5 {[%clk 0:02:53.5]} 6... Nxd5
{[%clk 0:02:46.6]} 7. Bd2 {[%clk 0:02:51.8]} 7... Nxc3 {[%clk 0:02:46.6]} 8.
bxc3 {[%clk 0:02:51.6]} 8... Bc5 {[%clk 0:02:42.5]} 9. Bg2 {[%clk 0:02:51.2]}
9... Bg4 {[%clk 0:02:36.3]} 10. h3 {[%clk 0:02:50.6]} 10... Bh5 {[%clk
0:02:29.4]} 11. Rb1 {[%clk 0:02:30.1]} 11... Bb6 {[%clk 0:02:28]} 12. O-O {[%clk
0:02:29.4]} 12... O-O {[%clk 0:02:26.5]} 13. g4 {[%clk 0:02:28.2]} 13... Bg6
{[%clk 0:02:25.8]} 14. Ng5 {[%clk 0:02:28.1]} 14... e4 {[%clk 0:02:19.2]} 15.
Nxe4 {[%clk 0:02:16.6]} 15... f5 {[%clk 0:02:17.3]} 16. Ng5 {[%clk 0:02:02.4]}
16... Qd6 {[%clk 0:02:01.1]} 17. Rb5 {[%clk 0:01:22]} 17... h6 {[%clk
0:01:37.2]} 18. Rd5 {[%clk 0:01:09.7]} 18... Qg3 {[%clk 0:01:32.7]} 19. Bf4
{[%clk 0:00:34.3]} 19... Qxf4 {[%clk 0:01:28.9]} 20. Ne6 {[%clk 0:00:34.5]}
20... Qg3 {[%clk 0:01:12.1]} 21. d4 {[%clk 0:00:22.2]} 21... Qh4 {[%clk
0:01:04.7]} 22. Nf4 {[%clk 0:00:12.3]} 22... Bf7 {[%clk 0:00:54.8]} 23. Rxf5
{[%clk 0:00:12.4]} 23... Bc4 {[%clk 0:00:55.2]} 24. Rh5 {[%clk 0:00:07.2]} 24...
Qd8 {[%clk 0:00:47.2]} 25. Bd5+ {[%clk 0:00:07.1]} 25... Bxd5 {[%clk 0:00:34.5]}
26. Rxd5 {[%clk 0:00:08]} 26... Qh4 {[%clk 0:00:29.2]} 27. Ng6 {[%clk
0:00:07.7]} 27... Qxh3 {[%clk 0:00:27.5]} 28. Nxf8 {[%clk 0:00:07.9]} 28... Rxf8
{[%clk 0:00:23.5]} 29. Rf5 {[%clk 0:00:07.6]} 29... Rxf5 {[%clk 0:00:15.5]} 30.
gxf5 {[%clk 0:00:08.5]} 30... Ne5 {[%clk 0:00:15.9]} 31. dxe5 {[%clk 0:00:02.7]}
31... Qg3+ {[%clk 0:00:15.9]} 32. Kh1 {[%clk 0:00:03.2]} 32... Qh3+ {[%clk
0:00:16.2]} 33. Kg1 {[%clk 0:00:03.9]} 33... Qg3+ {[%clk 0:00:15.2]} 34. Kh1
{[%clk 0:00:04.3]} 34... Qh3+ {[%clk 0:00:10.8]} 35. Kg1 {[%clk 0:00:04.6]}
1/2-1/2

[Event "*** Titled Tuesday Blitz"]
[Site "Chess.com"]
[Date "2020.10.27"]
[Round "3"]
[White "KaterinaMiroshnik"]
[Black "kamilianin235"]
[Result "1-0"]
[WhiteElo "2496"]
[BlackElo "2125"]
[TimeControl "180+1"]
[EndTime "10:28:08 PDT"]
[Termination "KaterinaMiroshnik won on time"]

1. Nf3 {[%clk 0:02:59.8]} 1... d5 {[%clk 0:02:59.1]} 2. c3 {[%clk 0:03:00.7]}
2... Nf6 {[%clk 0:02:57]} 3. Qc2 {[%clk 0:03:00.8]} 3... c6 {[%clk 0:02:56.9]}
4. d4 {[%clk 0:03:00.8]} 4... g6 {[%clk 0:02:55.4]} 5. e3 {[%clk 0:03:01]} 5...
Bg7 {[%clk 0:02:54.4]} 6. Bd3 {[%clk 0:03:00.7]} 6... Nbd7 {[%clk 0:02:52.9]} 7.
O-O {[%clk 0:03:01.6]} 7... Qc7 {[%clk 0:02:51.9]} 8. a4 {[%clk 0:03:01.4]} 8...
O-O {[%clk 0:02:50.7]} 9. Nbd2 {[%clk 0:03:01.7]} 9... e5 {[%clk 0:02:50.5]} 10.
dxe5 {[%clk 0:03:01.3]} 10... Ng4 {[%clk 0:02:49]} 11. h3 {[%clk 0:02:58.3]}
11... Ngxe5 {[%clk 0:02:47.5]} 12. Be2 {[%clk 0:02:58.3]} 12... Nxf3+ {[%clk
0:02:42]} 13. Nxf3 {[%clk 0:02:59.2]} 13... Ne5 {[%clk 0:02:37.2]} 14. a5 {[%clk
0:03:00.1]} 14... Bf5 {[%clk 0:02:35.4]} 15. Qd1 {[%clk 0:02:57.3]} 15... Rfe8
{[%clk 0:02:24.2]} 16. Nd4 {[%clk 0:02:55.2]} 16... Bd7 {[%clk 0:02:19.2]} 17.
a6 {[%clk 0:02:54.1]} 17... b6 {[%clk 0:02:10.2]} 18. b3 {[%clk 0:02:40.8]}
18... f5 {[%clk 0:02:03.1]} 19. Bb2 {[%clk 0:02:35.8]} 19... Nf7 {[%clk
0:01:55.3]} 20. Bf3 {[%clk 0:02:25.2]} 20... Nd6 {[%clk 0:01:47.8]} 21. Qc2
{[%clk 0:02:21.5]} 21... Ne4 {[%clk 0:01:45.4]} 22. Be2 {[%clk 0:02:18.8]} 22...
Qd6 {[%clk 0:01:35.6]} 23. Nf3 {[%clk 0:02:16.9]} 23... Qf6 {[%clk 0:01:30.3]}
24. Rab1 {[%clk 0:02:12.6]} 24... Nxc3 {[%clk 0:01:20]} 25. Rbe1 {[%clk
0:01:42]} 25... Nxe2+ {[%clk 0:01:13.3]} 26. Rxe2 {[%clk 0:01:42.9]} 26... Qe7
{[%clk 0:01:11.6]} 27. Bxg7 {[%clk 0:01:39.5]} 27... Qxg7 {[%clk 0:01:08.3]} 28.
Nd4 {[%clk 0:01:37.7]} 28... c5 {[%clk 0:00:59.7]} 29. Nf3 {[%clk 0:01:37.4]}
29... Bb5 {[%clk 0:00:48.9]} 30. Rd2 {[%clk 0:01:37.3]} 30... Bxf1 {[%clk
0:00:47.4]} 31. Kxf1 {[%clk 0:01:38.2]} 31... Rad8 {[%clk 0:00:45.1]} 32. Kg1
{[%clk 0:01:34.1]} 32... Qe7 {[%clk 0:00:42.2]} 33. Qd1 {[%clk 0:01:32.2]} 33...
Qe4 {[%clk 0:00:36.3]} 34. Ng5 {[%clk 0:01:24]} 34... Qe7 {[%clk 0:00:30.5]} 35.
h4 {[%clk 0:01:20.2]} 35... d4 {[%clk 0:00:22.7]} 36. e4 {[%clk 0:00:55.5]}
36... fxe4 {[%clk 0:00:21]} 37. Re2 {[%clk 0:00:55.1]} 37... e3 {[%clk
0:00:16.2]} 38. fxe3 {[%clk 0:00:54.4]} 38... dxe3 {[%clk 0:00:16.2]} 39. Qf1
{[%clk 0:00:52.6]} 39... Rf8 {[%clk 0:00:15.7]} 40. Qe1 {[%clk 0:00:51.3]} 40...
Qe5 {[%clk 0:00:12.5]} 41. Rxe3 {[%clk 0:00:47]} 41... Qf5 {[%clk 0:00:05]} 42.
Rf3 {[%clk 0:00:43.3]} 42... Qd7 {[%clk 0:00:03.5]} 43. Rxf8+ {[%clk 0:00:40.1]}
43... Rxf8 {[%clk 0:00:04.4]} 44. Qe4 {[%clk 0:00:37.3]} 1-0